[Event "EYCC Open-U16 2019"]
[Site "Bratislava"]
[Date "2019.08.02"]
[Round "1.8"]
[White "Nagy, Ladislav"]
[Black "Sahidi, Samir"]
[Result "0-1"]
[ECO "A06"]
[WhiteElo "2061"]
[BlackElo "2369"]
[Annotator "NA"]
[PlyCount "170"]
[EventDate "2019.08.02"]
[EventType "swiss"]
[EventCountry "SVK"]
[SourceTitle "playchess.com"]
[Source "ChessBase"]
[SourceQuality "1"]
[TimeControl "40/5400+30:1800+30"]

1. Nf3 {[%emt 0:00:00]} d5 {[%emt 0:00:00]} 2. g3 {[%emt 0:00:18]} Nf6 {[%emt 0:01:23]} 3. Bg2 {[%emt 0:01:11]} Bg4 {[%emt 0:03:55]} 4. d3 {[%emt 0:03:21]} Nc6 {[%emt 0:03:40]} 5. Nbd2 {[%emt 0:05:05]} h6 {[%emt 0:05:02]} 6. e4 {[%emt 0:06:45]} dxe4 {[%emt 0:05:04]} 7. dxe4 {[%emt 0:00:59]} Nxe4 {[%emt 0:06:14]} 8. Nxe4 {[%emt 0:13:55]} Qxd1+ {[%emt 0:00:16]} 9. Kxd1 {[%emt 0:00:06]} Nd4 {[%emt 0:00:14]} 10. Be3 {[%emt 0:11:57]} Nxf3 {[%emt 0:08:15]} 11. h3 {[%emt 0:05:24]} O-O-O+ {[%emt 0:07:46]} 12. Kc1 {[%emt 0:02:57]} Bh5 {[%emt 0:00:24]} 13. Nc5 {[%emt 0:05:09]} c6 {[%emt 0:05:43]} 14. Nd3 {[%emt 0:10:28]} Nd4 {[%emt 0:03:07]} 15. Nf4 {[%emt 0:02:02]} Bf3 {[%emt 0:01:57]} 16. Bxf3 {[%emt 0:02:38]} Nxf3 {[%emt 0:00:07]} 17. Bxa7 {[%emt 0:01:52]} e5 {[%emt 0:01:00]} 18. Nd3 {[%emt 0:01:41]} e4 {[%emt 0:01:35]} 19. Nc5 {[%emt 0:07:40]} Bxc5 {[%emt 0:05:19]} 20. Bxc5 {[%emt 0:00:08]} Rd5 {[%emt 0:01:02]} 21. Be3 {[%emt 0:01:35]} g5 {[%emt 0:00:57]} 22. b3 {[%emt 0:02:15]} f5 {[%emt 0:01:21]} 23. Kb2 {[%emt 0:04:00]} Rf8 {[%emt 0:00:51]} 24. c4 {[%emt 0:01:05]} Rd3 {[%emt 0:00:58]} 25. Rad1 {[%emt 0:00:41]} Ne5 {[%emt 0:01:41]} 26. Kc2 {[%emt 0:02:26]} f4 {[%emt 0:03:38]} 27. gxf4 {[%emt 0:00:27]} gxf4 {[%emt 0:00:14]} 28. Bd4 {[%emt 0:00:46]} Nf3 {[%emt 0:00:22]} 29. Bg7 {[%emt 0:02:47]} Rfd8 {[%emt 0:00:36]} 30. Bxh6 {[%emt 0:01:19]} Rd2+ {[%emt 0:00:12]} 31. Rxd2 {[%emt 0:01:30]} Rxd2+ {[%emt 0:00:08]} 32. Kb1 {[%emt 0:00:26]} Rxf2 {[%emt 0:01:02]} 33. Bxf4 {[%emt 0:00:25]} Rg2 {[%emt 0:01:08]} 34. Bc1 {[%emt 0:01:45]} Nd4 {[%emt 0:03:23]} 35. h4 {[%emt 0:01:01]} Ne2 {[%emt 0:00:08]} 36. Bb2 {[%emt 0:00:19]} Ng3 {[%emt 0:03:37]} 37. Re1 {[%emt 0:00:43]} Kd7 {[%emt 0:00:56]} 38. Be5 {[%emt 0:00:35]} Ne2 {[%emt 0:00:28]} 39. h5 {[%emt 0:00:49]} Ke6 {[%emt 0:00:28]} 40. Bb2 {[%emt 0:00:00]} Kf5 {[%emt 0:00:00]} 41. h6 {[%emt 0:11:58]} Kg6 {[%emt 0:06:29]} 42. Rh1 {[%emt 0:03:54]} Kh7 {[%emt 0:00:30]} 43. Rh4 {[%emt 0:03:36]} Ng3 {[%emt 0:02:38]} 44. Be5 {[%emt 0:01:42]} Nf1 {[%emt 0:00:36]} 45. Rh1 {[%emt 0:03:58]} Nd2+ {[%emt 0:05:36]} 46. Kc1 {[%emt 0:00:55]} Nf3 {[%emt 0:01:42]} 47. Bf4 {[%emt 0:02:52]} Nd4 {[%emt 0:04:35]} 48. Kb1 {[%emt 0:01:48]} Ne2 {[%emt 0:01:12]} 49. Be5 {[%emt 0:01:01]} Ng1 {[%emt 0:00:53]} 50. Bf4 {[%emt 0:00:58]} Ne2 {[%emt 0:00:44]} 51. Be5 {[%emt 0:00:09]} Rf2 {[%emt 0:02:22]} 52. a4 {[%emt 0:01:15]} c5 {[%emt 0:01:35]} 53. Rh3 {[%emt 0:01:03]} Rf3 {[%emt 0:00:54]} 54. Rh4 {[%emt 0:00:44]} e3 {[%emt 0:01:11]} 55. Kc2 {[%emt 0:00:40]} Ng1 {[%emt 0:01:16]} 56. Bc3 {[%emt 0:01:30]} Rf2+ {[%emt 0:02:43]} 57. Kd3 {[%emt 0:00:45]} e2 {[%emt 0:00:13]} 58. Re4 {[%emt 0:00:34]} Rf3+ {[%emt 0:02:26]} 59. Re3 {[%emt 0:00:45]} Rf7 {[%emt 0:01:12]} 60. Kd2 {[%emt 0:00:31]} Kxh6 {[%emt 0:01:02]} 61. Rg3 {[%emt 0:00:41]} Rf1 {[%emt 0:00:31]} 62. Re3 {[%emt 0:00:26]} Kg5 {[%emt 0:00:57]} 63. Re7 {[%emt 0:00:20]} Kg4 {[%emt 0:00:56]} 64. Kc2 {[%emt 0:00:35]} Kg3 {[%emt 0:02:54]} 65. Rxb7 {[%emt 0:00:35]} Nf3 {[%emt 0:01:33]} 66. Re7 {[%emt 0:00:28]} e1=Q {[%emt 0:00:34]} 67. Bxe1+ {[%emt 0:00:11]} Nxe1+ {[%emt 0:00:05]} 68. Kd2 {[%emt 0:00:53]} Nf3+ {[%emt 0:00:11]} 69. Kc3 {[%emt 0:00:28]} Nd4 {[%emt 0:01:12]} 70. Rg7+ {[%emt 0:00:15]} Kh4 {[%emt 0:00:29]} 71. Rb7 {[%emt 0:00:25]} Rf3+ {[%emt 0:01:10]} 72. Kb2 {[%emt 0:00:14]} Rf2+ {[%emt 0:00:39]} 73. Kc3 {[%emt 0:00:22]} Rf3+ {[%emt 0:01:37]} 74. Kb2 {[%emt 0:00:12]} Nc6 {[%emt 0:00:16]} 75. Rb5 {[%emt 0:01:04]} Nb4 {[%emt 0:00:13]} 76. a5 {[%emt 0:01:02]} Kg4 {[%emt 0:02:36]} 77. Ka3 {[%emt 0:00:27]} Rf1 {[%emt 0:01:13]} 78. Kb2 {[%emt 0:00:37]} Kf4 {[%emt 0:00:36]} 79. Kc3 {[%emt 0:00:22]} Rf3+ {[%emt 0:00:48]} 80. Kd2 {[%emt 0:00:25]} Rf2+ {[%emt 0:00:09]} 81. Kd1 {[%emt 0:00:35]} Ke3 {[%emt 0:00:18]} 82. Kc1 {[%emt 0:00:22]} Kd4 {[%emt 0:00:16]} 83. Kd1 {[%emt 0:00:34]} Nd3 {[%emt 0:00:18]} 84. a6 {[%emt 0:00:37]} Ke3 {[%emt 0:00:18]} 85. a7 {[%emt 0:00:06]} Rd2# 0-1

[Event "EYCC Open-U16 2019"]
[Site "Bratislava"]
[Date "2019.08.02"]
[Round "1.9"]
[White "Remizov, Yaroslav"]
[Black "Ampelakiotis, Stavros"]
[Result "1/2-1/2"]
[ECO "B49"]
[WhiteElo "2357"]
[BlackElo "2080"]
[Annotator "NA"]
[PlyCount "82"]
[EventDate "2019.08.02"]
[EventType "swiss"]
[EventCountry "SVK"]
[SourceTitle "playchess.com"]
[Source "ChessBase"]
[SourceQuality "1"]
[TimeControl "40/5400+30:1800+30"]

1. e4 {[%emt 0:00:00]} c5 {[%emt 0:00:00]} 2. Nf3 {[%emt 0:00:00]} Nc6 {[%emt 0:00:00]} 3. d4 {[%emt 0:00:00]} cxd4 {[%emt 0:00:05]} 4. Nxd4 {[%emt 0:00:00]} e6 {[%emt 0:00:13]} 5. Nc3 {[%emt 0:00:23]} Qc7 {[%emt 0:00:09]} 6. Be2 {[%emt 0:02:43]} a6 {[%emt 0:00:32]} 7. Be3 {[%emt 0:00:39]} Nf6 {[%emt 0:00:33]} 8. O-O {[%emt 0:00:16]} Bb4 {[%emt 0:01:08]} 9. Nxc6 {[%emt 0:01:06]} bxc6 {[%emt 0:01:03]} 10. Qd4 {[%emt 0:00:10]} c5 {[%emt 0:01:01]} 11. Qc4 {[%emt 0:00:08]} O-O {[%emt 0:00:08]} 12. Bf3 {[%emt 0:12:18]} d6 {[%emt 0:00:22]} 13. a3 {[%emt 0:10:29]} Bxc3 {[%emt 0:01:23]} 14. Qxc3 {[%emt 0:00:09]} Bb7 {[%emt 0:04:23]} 15. e5 {[%emt 0:05:17]} dxe5 {[%emt 0:01:21]} 16. Qxc5 {[%emt 0:06:24]} Rfc8 {[%emt 0:05:52]} 17. Qxc7 {[%emt 0:04:51]} Rxc7 {[%emt 0:00:07]} 18. Bb6 {[%emt 0:26:10]} Rd7 {[%emt 0:06:10]} 19. Ba5 {[%emt 0:08:40]} Rc8 {[%emt 0:21:15]} 20. Rfd1 {[%emt 0:07:33]} Bxf3 {[%emt 0:10:29]} 21. Rxd7 {[%emt 0:03:36]} Nxd7 {[%emt 0:00:19]} 22. gxf3 {[%emt 0:00:02]} Kf8 {[%emt 0:08:12]} 23. Rc1 {[%emt 0:03:12]} Ke8 {[%emt 0:04:04]} 24. c4 {[%emt 0:00:41]} Nc5 {[%emt 0:05:17]} 25. Rc3 {[%emt 0:00:41]} Rc6 {[%emt 0:07:06]} 26. b4 {[%emt 0:01:05]} Nb7 {[%emt 0:02:16]} 27. b5 {[%emt 0:00:12]} Rc8 {[%emt 0:00:37]} 28. Bb4 {[%emt 0:03:04]} a5 {[%emt 0:01:14]} 29. c5 {[%emt 0:00:10]} axb4 {[%emt 0:01:58]} 30. axb4 {[%emt 0:00:02]} Kd8 {[%emt 0:13:37]} 31. c6 {[%emt 0:04:07]} Kc7 {[%emt 0:02:15]} 32. cxb7+ {[%emt 0:00:32]} Kxb7 {[%emt 0:00:05]} 33. Re3 {[%emt 0:00:07]} Rc4 {[%emt 0:01:07]} 34. Rxe5 {[%emt 0:00:19]} Rxb4 {[%emt 0:00:05]} 35. Rg5 {[%emt 0:01:27]} g6 {[%emt 0:00:30]} 36. Rc5 {[%emt 0:00:13]} Kb6 {[%emt 0:00:37]} 37. Rc6+ {[%emt 0:01:00]} Kxb5 {[%emt 0:00:50]} 38. Rc7 {[%emt 0:00:04]} Rf4 {[%emt 0:00:14]} 39. Kg2 {[%emt 0:00:02]} Kb6 {[%emt 0:00:31]} 40. Rc8 {[%emt 0:00:00]} Kb7 {[%emt 0:00:00]} 41. Rc3 {[%emt 0:01:27]} Kb6 {[%emt 0:05:03]} 1/2-1/2

[Event "EYCC Open-U16 2019"]
[Site "Bratislava"]
[Date "2019.08.02"]
[Round "1.10"]
[White "Stremavicius, Pijus"]
[Black "Sorensen, Hampus"]
[Result "1/2-1/2"]
[ECO "D30"]
[WhiteElo "2071"]
[BlackElo "2352"]
[Annotator "NA"]
[PlyCount "130"]
[EventDate "2019.08.02"]
[EventType "swiss"]
[EventCountry "SVK"]
[SourceTitle "playchess.com"]
[Source "ChessBase"]
[SourceQuality "1"]
[TimeControl "40/5400+30:1800+30"]

1. d4 {[%emt 0:00:00]} d5 {[%emt 0:00:00]} 2. c4 {[%emt 0:00:00]} e6 {[%emt 0:00:25]} 3. Nf3 {[%emt 0:00:00]} a6 {[%emt 0:00:16]} 4. e3 {[%emt 0:00:00]} Nf6 {[%emt 0:05:16]} 5. Nbd2 {[%emt 0:00:22]} c5 {[%emt 0:05:22]} 6. b3 {[%emt 0:01:10]} cxd4 {[%emt 0:03:41]} 7. exd4 {[%emt 0:00:11]} b6 8. Bb2 Bb7 {[%emt 0:03:20]} 9. Bd3 {[%emt 0:03:14]} Be7 {[%emt 0:01:22]} 10. O-O {[%emt 0:00:22]} Nbd7 {[%emt 0:04:06]} 11. Qe2 {[%emt 0:04:20]} O-O {[%emt 0:04:53]} 12. Ne5 {[%emt 0:01:05]} dxc4 {[%emt 0:07:27]} 13. bxc4 {[%emt 0:00:26]} Nxe5 {[%emt 0:01:12]} 14. dxe5 {[%emt 0:04:54]} Nd7 {[%emt 0:01:42]} 15. Be4 {[%emt 0:23:08]} Qc7 {[%emt 0:06:28]} 16. Bxb7 {[%emt 0:00:39]} Qxb7 {[%emt 0:00:01]} 17. Ne4 {[%emt 0:00:20]} Nc5 {[%emt 0:05:35]} 18. Nxc5 {[%emt 0:09:56]} Bxc5 {[%emt 0:00:24]} 19. Rfd1 {[%emt 0:02:57]} Rfd8 {[%emt 0:03:21]} 20. Rd3 {[%emt 0:01:37]} Rxd3 {[%emt 0:02:03]} 21. Qxd3 {[%emt 0:00:22]} h6 {[%emt 0:01:31]} 22. Rd1 {[%emt 0:01:17]} Rc8 {[%emt 0:02:44]} 23. h3 {[%emt 0:05:18]} Qc6 {[%emt 0:03:22]} 24. Qd7 {[%emt 0:03:37]} Bb4 {[%emt 0:02:53]} 25. Qxc6 {[%emt 0:00:45]} Rxc6 {[%emt 0:00:06]} 26. Rc1 {[%emt 0:14:17]} Kf8 {[%emt 0:02:39]} 27. Kf1 {[%emt 0:00:41]} Ke8 {[%emt 0:04:21]} 28. Ke2 {[%emt 0:01:15]} Kd7 {[%emt 0:01:32]} 29. Kd3 {[%emt 0:03:41]} Rc8 {[%emt 0:04:08]} 30. Ke4 {[%emt 0:03:15]} Kc6 {[%emt 0:01:46]} 31. Rd1 {[%emt 0:00:10]} h5 {[%emt 0:02:49]} 32. Rd3 {[%emt 0:01:24]} Rc7 {[%emt 0:05:55]} 33. f4 {[%emt 0:05:45]} g6 {[%emt 0:02:28]} 34. Rd8 {[%emt 0:00:54]} b5 {[%emt 0:01:42]} 35. cxb5+ {[%emt 0:01:04]} Kxb5 {[%emt 0:02:59]} 36. Kd3 {[%emt 0:00:37]} Be7 {[%emt 0:05:11]} 37. Rd4 {[%emt 0:00:38]} Rb7 {[%emt 0:03:22]} 38. g4 {[%emt 0:00:30]} hxg4 {[%emt 0:00:21]} 39. hxg4 {[%emt 0:00:01]} Bc5 {[%emt 0:01:20]} 40. Rd8 {[%emt 0:00:00]} Ka4 {[%emt 0:00:00]} 41. Bc1 {[%emt 0:03:06]} a5 {[%emt 0:06:06]} 42. Rc8 {[%emt 0:03:12]} Rd7+ {[%emt 0:05:25]} 43. Kc2 {[%emt 0:00:52]} Bb4 {[%emt 0:01:26]} 44. Rc4 {[%emt 0:01:00]} Kb5 {[%emt 0:01:30]} 45. Rc8 {[%emt 0:00:21]} Rd4 {[%emt 0:01:42]} 46. Rb8+ {[%emt 0:07:43]} Kc6 {[%emt 0:00:11]} 47. Rc8+ {[%emt 0:00:56]} Kb7 {[%emt 0:06:30]} 48. Rh8 {[%emt 0:00:38]} Rc4+ {[%emt 0:00:45]} 49. Kd1 {[%emt 0:01:46]} Kc6 {[%emt 0:01:46]} 50. Rh7 {[%emt 0:00:51]} Rd4+ {[%emt 0:00:01]} 51. Kc2 {[%emt 0:00:11]} Rd7 {[%emt 0:00:04]} 52. Rh8 {[%emt 0:01:56]} Kd5 {[%emt 0:00:27]} 53. Rc8 {[%emt 0:00:37]} Ke4 {[%emt 0:02:25]} 54. Rc4+ {[%emt 0:00:30]} Kf3 {[%emt 0:00:46]} 55. f5 {[%emt 0:01:08]} gxf5 {[%emt 0:00:56]} 56. gxf5 {[%emt 0:00:07]} exf5 {[%emt 0:01:01]} 57. Rf4+ {[%emt 0:01:13]} Ke2 {[%emt 0:00:05]} 58. Rxf5 {[%emt 0:00:27]} Rc7+ {[%emt 0:00:03]} 59. Kb1 {[%emt 0:00:12]} Bc3 {[%emt 0:03:46]} 60. Rh5 {[%emt 0:02:30]} Kd3 {[%emt 0:00:55]} 61. Bb2 {[%emt 0:04:20]} Bxb2 {[%emt 0:01:28]} 62. Kxb2 {[%emt 0:00:01]} Rc2+ {[%emt 0:01:52]} 63. Kb3 {[%emt 0:00:17]} Rf2 {[%emt 0:00:17]} 64. Rh6 {[%emt 0:00:59]} Kd4 {[%emt 0:01:25]} 65. e6 {[%emt 0:00:16]} fxe6 {[%emt 0:00:07]} 1/2-1/2

[Event "EYCC Open-U16 2019"]
[Site "Bratislava"]
[Date "2019.08.02"]
[Round "1.11"]
[White "Globus, Or"]
[Black "Holly, Andrej"]
[Result "1-0"]
[ECO "E92"]
[WhiteElo "2352"]
[BlackElo "2046"]
[Annotator "NA"]
[PlyCount "65"]
[EventDate "2019.08.02"]
[EventType "swiss"]
[EventCountry "SVK"]
[SourceTitle "playchess.com"]
[Source "ChessBase"]
[SourceQuality "1"]
[TimeControl "40/5400+30:1800+30"]

1. c4 {[%emt 0:00:00]} Nf6 {[%emt 0:00:00]} 2. Nc3 {[%emt 0:00:00]} g6 {[%emt 0:00:16]} 3. d4 {[%emt 0:00:06]} Bg7 {[%emt 0:00:22]} 4. e4 {[%emt 0:00:15]} d6 {[%emt 0:00:42]} 5. Nf3 {[%emt 0:00:08]} O-O {[%emt 0:00:11]} 6. Be2 {[%emt 0:00:12]} e5 {[%emt 0:01:02]} 7. d5 {[%emt 0:00:42]} a5 {[%emt 0:04:14]} 8. O-O {[%emt 0:00:50]} Na6 {[%emt 0:01:40]} 9. Bg5 {[%emt 0:00:37]} Nc5 {[%emt 0:04:39]} 10. Nd2 {[%emt 0:02:29]} h6 {[%emt 0:07:13]} 11. Be3 {[%emt 0:00:08]} Qe7 {[%emt 0:03:09]} 12. a3 {[%emt 0:01:50]} Ne8 {[%emt 0:09:36]} 13. b4 {[%emt 0:02:50]} axb4 {[%emt 0:01:05]} 14. axb4 {[%emt 0:00:06]} Rxa1 {[%emt 0:00:15]} 15. Qxa1 {[%emt 0:00:11]} Na6 {[%emt 0:06:13]} 16. Qa5 {[%emt 0:04:42]} f5 {[%emt 0:04:43]} 17. f3 {[%emt 0:00:32]} f4 {[%emt 0:03:15]} 18. Bf2 {[%emt 0:00:42]} Nf6 {[%emt 0:14:35]} 19. c5 {[%emt 0:08:06]} Nb8 {[%emt 0:08:43]} 20. Nb5 {[%emt 0:05:57]} Na6 {[%emt 0:03:10]} 21. cxd6 {[%emt 0:02:11]} cxd6 {[%emt 0:00:21]} 22. Nc4 {[%emt 0:01:04]} Ne8 {[%emt 0:02:03]} 23. Rc1 {[%emt 0:04:15]} Bd7 {[%emt 0:06:01]} 24. Na7 {[%emt 0:07:54]} g5 {[%emt 0:10:27]} 25. Qb6 {[%emt 0:01:25]} Ba4 {[%emt 0:01:36]} 26. Na5 {[%emt 0:06:42]} Rf7 {[%emt 0:01:47]} 27. Nc8 {[%emt 0:07:09]} Qd7 {[%emt 0:00:58]} 28. Nxb7 {[%emt 0:01:32]} Qxb7 {[%emt 0:02:19]} 29. Bxa6 {[%emt 0:00:42]} Qxb6 {[%emt 0:00:48]} 30. Nxb6 {[%emt 0:00:26]} Rc7 {[%emt 0:01:27]} 31. Rxc7 {[%emt 0:00:56]} Nxc7 {[%emt 0:00:02]} 32. Nxa4 {[%emt 0:00:09]} Nxa6 {[%emt 0:00:09]} 33. b5 {[%emt 0:00:00]} 1-0

[Event "EYCC Open-U16 2019"]
[Site "Bratislava"]
[Date "2019.08.02"]
[Round "1.12"]
[White "Minko, Dmitry"]
[Black "Veiga, Jose Francisco R P N"]
[Result "1-0"]
[ECO "C45"]
[WhiteElo "2061"]
[BlackElo "2357"]
[Annotator "NA"]
[PlyCount "101"]
[EventDate "2019.08.02"]
[EventType "swiss"]
[EventCountry "SVK"]
[SourceTitle "playchess.com"]
[Source "ChessBase"]
[SourceQuality "1"]
[TimeControl "40/5400+30:1800+30"]

1. e4 e5 2. Nf3 Nc6 3. d4 exd4 4. Nxd4 Bc5 5. Be3 Qf6 6. c3 Nge7 7. g3 Nxd4 8. Bxd4 Bxd4 9. Qxd4 Qxd4 10. cxd4 d5 11. e5 Bg4 12. Be2 Bxe2 13. Kxe2 f6 14. exf6 gxf6 15. Kd3 Kd7 16. Nd2 Rhe8 17. Rae1 Nf5 18. Nf3 Rxe1 19. Rxe1 Nd6 20. Nd2 b6 21. f4 c5 22. b3 a5 23. g4 a4 24. dxc5 bxc5 25. g5 axb3 26. axb3 fxg5 27. fxg5 Nf7 28. h4 Kd6 29. Nf3 Ra2 30. Re8 Rf2 31. Ke3 Rb2 32. Kf4 Rxb3 33. h5 Kd7 34. Ra8 Ke6 35. Re8+ Kd7 36. Ra8 Ke7 37. g6 hxg6 38. hxg6 Rb4+ 39. Kf5 Nh6+ 40. Kg5 Ng4 41. g7 Nf6 42. Ra7+ Ke6 43. Kg6 Rb6 44. Ng5+ Ke5 45. Re7+ Kf4 46. Rf7 Ke5 47. Nf3+ Ke4 48. Rxf6 Rb8 49. Ng5+ Ke5 50. Rf8 Rb6+ 51. Kh5 1-0

[Event "EYCC Open-U16 2019"]
[Site "Bratislava"]
[Date "2019.08.02"]
[Round "1.13"]
[White "Boyer, Mahel"]
[Black "Akulov, Lev"]
[Result "1/2-1/2"]
[ECO "B20"]
[WhiteElo "2295"]
[BlackElo "2068"]
[Annotator "NA"]
[PlyCount "91"]
[EventDate "2019.08.02"]
[EventType "swiss"]
[EventCountry "SVK"]
[SourceTitle "playchess.com"]
[Source "ChessBase"]
[SourceQuality "1"]
[TimeControl "40/5400+30:1800+30"]

1. e4 {[%emt 0:00:00]} c5 {[%emt 0:00:00]} 2. d3 {[%emt 0:00:00]} e6 {[%emt 0:00:00]} 3. g3 {[%emt 0:00:00]} b6 {[%emt 0:01:13]} 4. Bg2 {[%emt 0:00:00]} Bb7 {[%emt 0:00:03]} 5. f4 {[%emt 0:00:01]} g6 {[%emt 0:01:23]} 6. Nf3 {[%emt 0:00:16]} Bg7 {[%emt 0:00:33]} 7. O-O {[%emt 0:00:10]} Ne7 {[%emt 0:00:53]} 8. c3 {[%emt 0:00:55]} O-O {[%emt 0:01:39]} 9. Re1 {[%emt 0:00:45]} d5 {[%emt 0:01:03]} 10. e5 {[%emt 0:01:00]} Nbc6 {[%emt 0:01:43]} 11. Na3 {[%emt 0:02:04]} a6 {[%emt 0:00:41]} 12. Nc2 {[%emt 0:00:08]} Qc7 {[%emt 0:00:47]} 13. Be3 {[%emt 0:05:06]} b5 {[%emt 0:14:31]} 14. Kh1 {[%emt 0:02:57]} c4 {[%emt 0:03:46]} 15. d4 {[%emt 0:01:13]} Rfb8 {[%emt 0:01:44]} 16. g4 {[%emt 0:01:01]} Bc8 {[%emt 0:05:28]} 17. Qd2 Na5 {[%emt 0:06:24]} 18. Bf2 {[%emt 0:05:45]} Nec6 {[%emt 0:01:03]} 19. Bh3 {[%emt 0:03:32]} Bf8 {[%emt 0:10:39]} 20. Bh4 {[%emt 0:13:35]} b4 {[%emt 0:07:02]} 21. Bf6 {[%emt 0:00:32]} bxc3 {[%emt 0:03:06]} 22. bxc3 {[%emt 0:00:10]} Rb2 {[%emt 0:17:08]} 23. Qf2 {[%emt 0:09:00]} Nb8 {[%emt 0:03:12]} 24. Re2 {[%emt 0:07:16]} Nac6 {[%emt 0:03:26]} 25. f5 {[%emt 0:09:11]} h6 {[%emt 0:05:58]} 26. Rf1 {[%emt 0:05:27]} Ra7 {[%emt 0:04:25]} 27. Nh4 {[%emt 0:00:19]} g5 {[%emt 0:01:12]} 28. Nf3 {[%emt 0:00:10]} Nd7 {[%emt 0:02:22]} 29. Bxg5 {[%emt 0:01:46]} hxg5 {[%emt 0:00:39]} 30. fxe6 {[%emt 0:00:07]} Ndxe5 {[%emt 0:01:18]} 31. Nxe5 {[%emt 0:00:26]} Bxe6 {[%emt 0:00:34]} 32. Bg2 {[%emt 0:04:17]} Bg7 {[%emt 0:00:31]} 33. Nxc4 {[%emt 0:16:35]} dxc4 {[%emt 0:00:45]} 34. d5 {[%emt 0:00:01]} Nd8 {[%emt 0:00:58]} 35. dxe6 {[%emt 0:02:34]} Nxe6 {[%emt 0:00:02]} 36. Qf5 {[%emt 0:00:08]} Qd8 {[%emt 0:01:01]} 37. Rxe6 {[%emt 0:06:12]} fxe6 {[%emt 0:00:06]} 38. Qxe6+ {[%emt 0:00:04]} Kh8 {[%emt 0:00:05]} 39. Rf3 {[%emt 0:00:30]} Rb1+ {[%emt 0:01:13]} 40. Ne1 {[%emt 0:00:00]} Bxc3 {[%emt 0:00:00]} 41. Rxc3 {[%emt 0:01:54]} Kg7 {[%emt 0:10:20]} 42. Rf3 {[%emt 0:05:09]} Qe7 {[%emt 0:01:47]} 43. Qxc4 {[%emt 0:04:48]} Rxe1+ {[%emt 0:00:45]} 44. Bf1 {[%emt 0:00:55]} Qe4 {[%emt 0:09:37]} 45. Qc3+ {[%emt 0:04:09]} Qe5 {[%emt 0:04:20]} 46. Qxe5+ 1/2-1/2